Workbook

Sheet Løn for august
A1: Timeseddel
A5: Medarbejders navn: | G5: Mobil: | I5: Mail:
A8: Perioden 21. Juli - 20. august 2019
A11: Arbejdstimer | B11: Hviletid | C11: Samlet Arbejdstimer | D11: Overarbejde 1-3 timer | E11: Overarbejde 3+ | F11: Tillæg kl. 18-23 | G11: Tillæg kl. 23-06 | H11: Helligdagstillæg | I11: Sygdom | J11: Ferie
A12: =SUM(E16:E46)*24 -> 39.9 | B12: =SUM(D16:D46)*24 -> 1.25 | C12: =SUM(A12-B12) -> 38.65 | D12: =SUM(F16:F46)*24 -> 6.9 | E12: =SUM(G16:G46)*24 -> 3 | F12: =SUM(H16:H46)*24 -> 5 | G12: =SUM(I16:I46)*24 -> 14 | H12: =SUM(J16:J46)*24 -> 0
A15: Dato | B15: Fra tid (tt:mm) | C15: Til tid (tt:mm) | D15: Hviletid (tt:mm) | E15: Arbejdstimer (60/100 del) | F15: Overarbejde 1-3 timer | G15: Overarbejde 3+ | H15: Tillæg kl. 18-23 | I15: Tillæg kl. 23-06 | J15: Helligdagstillæg
A16: 2019-07-21 | B16: 07:00:00 | C16: 15:24:00 | D16: 00:30:00 | E16: =C16-B16+(C16<B16) -> 08:24:00 | F16: =IF(B16<>"",IF(E16>T!$B$4,T!$C$4,E16-T!$B$3),"0:0") -> 0.0375 | G16: =IF(E16>T!$B$4,E16-T!$B$4,"00:00") -> 00:00 | H16: =ColTime(T!B7,T!C7,B16,C16) -> 0 | I16: =ColTime(T!$B$8,T!$C$8,B16,C16) -> 0
A17: 2019-07-22 | B17: 23:00:00 | C17: 07:00:00 | E17: =C17-B17+(C17<B17) -> 08:00:00 | F17: =IF(B17<>"",IF(E17>T!$B$4,T!$C$4,E17-T!$B$3),"0:0") -> 0.02083333333 | G17: =IF(E17>T!$B$4,E17-T!$B$4,"00:00") -> 00:00 | H17: =ColTime(T!$B$7,T!$C$7,B17,C17) -> 0 | I17: =ColTime(T!$B$8,T!$C$8,B17,C17) -> 0.2916666667
A18: 2019-07-23 | B18: 15:30:00 | C18: 01:30:00 | D18: 00:45:00 | E18: =C18-B18+(C18<B18) -> 10:00:00 | F18: =IF(B18<>"",IF(E18>T!$B$4,T!$C$4,E18-T!$B$3),"0:0") -> 0.1041666667 | G18: =IF(E18>T!$B$4,E18-T!$B$4,"00:00") -> 00:00 | H18: =ColTime(T!$B$7,T!$C$7,B18,C18) -> 0.2083333333 | I18: =ColTime(T!$B$8,T!$C$8,B18,C18) -> 0.1041666667
A19: 2019-07-24 | B19: 01:30:00 | C19: 15:00:00 | E19: 13:30:00 | F19: =IF(B19<>"",IF(E19>T!$B$4,T!$C$4,E19-T!$B$3),"0:0") -> 0.125 | G19: =IF(E19>T!$B$4,E19-T!$B$4,"00:00") -> 0.125 | H19: =ColTime(T!$B$7,T!$C$7,B19,C19) -> 0 | I19: =ColTime(T!$B$8,T!$C$8,B19,C19) -> 0.1875
A20: 2019-07-25 | E20: 00:00:00 | F20: =IF(B20<>"",IF(E20>T!$B$4,T!$C$4,E20-T!$B$3),"0:0") -> 0:0 | G20: =IF(E20>T!$B$4,E20-T!$B$4,"00:00") -> 00:00 | H20: =ColTime(T!$B$7,T!$C$7,B20,C20) -> 0 | I20: =ColTime(T!$B$8,T!$C$8,B20,C20) -> 0
A21: 2019-07-26 | E21: 00:00:00 | F21: =IF(B21<>"",IF(E21>T!$B$4,T!$C$4,E21-T!$B$3),"0:0") -> 0:0 | G21: =IF(E21>T!$B$4,E21-T!$B$4,"00:00") -> 00:00 | H21: =ColTime(T!$B$7,T!$C$7,B21,C21) -> 0 | I21: =ColTime(T!$B$8,T!$C$8,B21,C21) -> 0
A22: 2019-07-27 | E22: 00:00:00 | F22: =IF(B22<>"",IF(E22>T!$B$4,T!$C$4,E22-T!$B$3),"0:0") -> 0:0 | G22: =IF(E22>T!$B$4,E22-T!$B$4,"00:00") -> 00:00 | H22: =ColTime(T!$B$7,T!$C$7,B22,C22) -> 0 | I22: =ColTime(T!$B$8,T!$C$8,B22,C22) -> 0
A23: 2019-07-28 | E23: 00:00:00 | F23: =IF(B23<>"",IF(E23>T!$B$4,T!$C$4,E23-T!$B$3),"0:0") -> 0:0 | G23: =IF(E23>T!$B$4,E23-T!$B$4,"00:00") -> 00:00 | H23: =ColTime(T!$B$7,T!$C$7,B23,C23) -> 0 | I23: =ColTime(T!$B$8,T!$C$8,B23,C23) -> 0
A24: 2019-07-29 | E24: 00:00:00 | F24: =IF(B24<>"",IF(E24>T!$B$4,T!$C$4,E24-T!$B$3),"0:0") -> 0:0 | G24: =IF(E24>T!$B$4,E24-T!$B$4,"00:00") -> 00:00 | H24: =ColTime(T!$B$7,T!$C$7,B24,C24) -> 0 | I24: =ColTime(T!$B$8,T!$C$8,B24,C24) -> 0
A25: 2019-07-30 | E25: 00:00:00 | F25: =IF(B25<>"",IF(E25>T!$B$4,T!$C$4,E25-T!$B$3),"0:0") -> 0:0 | G25: =IF(E25>T!$B$4,E25-T!$B$4,"00:00") -> 00:00 | H25: =ColTime(T!$B$7,T!$C$7,B25,C25) -> 0 | I25: =ColTime(T!$B$8,T!$C$8,B25,C25) -> 0
A26: 2019-07-31 | E26: 00:00:00 | F26: =IF(B26<>"",IF(E26>T!$B$4,T!$C$4,E26-T!$B$3),"0:0") -> 0:0 | G26: =IF(E26>T!$B$4,E26-T!$B$4,"00:00") -> 00:00 | H26: =ColTime(T!$B$7,T!$C$7,B26,C26) -> 0 | I26: =ColTime(T!$B$8,T!$C$8,B26,C26) -> 0
A27: 2019-08-01 | E27: 00:00:00 | F27: =IF(B27<>"",IF(E27>T!$B$4,T!$C$4,E27-T!$B$3),"0:0") -> 0:0 | G27: =IF(E27>T!$B$4,E27-T!$B$4,"00:00") -> 00:00 | H27: =ColTime(T!$B$7,T!$C$7,B27,C27) -> 0 | I27: =ColTime(T!$B$8,T!$C$8,B27,C27) -> 0
A28: 2019-08-02 | E28: 00:00:00 | F28: =IF(B28<>"",IF(E28>T!$B$4,T!$C$4,E28-T!$B$3),"0:0") -> 0:0 | G28: =IF(E28>T!$B$4,E28-T!$B$4,"00:00") -> 00:00 | H28: =ColTime(T!$B$7,T!$C$7,B28,C28) -> 0 | I28: =ColTime(T!$B$8,T!$C$8,B28,C28) -> 0
A29: 2019-08-03 | E29: 00:00:00 | F29: =IF(B29<>"",IF(E29>T!$B$4,T!$C$4,E29-T!$B$3),"0:0") -> 0:0 | G29: =IF(E29>T!$B$4,E29-T!$B$4,"00:00") -> 00:00 | H29: =ColTime(T!$B$7,T!$C$7,B29,C29) -> 0 | I29: =ColTime(T!$B$8,T!$C$8,B29,C29) -> 0
A30: 2019-08-04 | E30: 00:00:00 | F30: =IF(B30<>"",IF(E30>T!$B$4,T!$C$4,E30-T!$B$3),"0:0") -> 0:0 | G30: =IF(E30>T!$B$4,E30-T!$B$4,"00:00") -> 00:00 | H30: =ColTime(T!$B$7,T!$C$7,B30,C30) -> 0 | I30: =ColTime(T!$B$8,T!$C$8,B30,C30) -> 0
A31: 2019-08-05 | E31: 00:00:00 | F31: =IF(B31<>"",IF(E31>T!$B$4,T!$C$4,E31-T!$B$3),"0:0") -> 0:0 | G31: =IF(E31>T!$B$4,E31-T!$B$4,"00:00") -> 00:00 | H31: =ColTime(T!$B$7,T!$C$7,B31,C31) -> 0 | I31: =ColTime(T!$B$8,T!$C$8,B31,C31) -> 0
A32: 2019-08-06 | E32: 00:00:00 | F32: =IF(B32<>"",IF(E32>T!$B$4,T!$C$4,E32-T!$B$3),"0:0") -> 0:0 | G32: =IF(E32>T!$B$4,E32-T!$B$4,"00:00") -> 00:00 | H32: =ColTime(T!$B$7,T!$C$7,B32,C32) -> 0 | I32: =ColTime(T!$B$8,T!$C$8,B32,C32) -> 0
A33: 2019-08-07 | E33: 00:00:00 | F33: =IF(B33<>"",IF(E33>T!$B$4,T!$C$4,E33-T!$B$3),"0:0") -> 0:0 | G33: =IF(E33>T!$B$4,E33-T!$B$4,"00:00") -> 00:00 | H33: =ColTime(T!$B$7,T!$C$7,B33,C33) -> 0 | I33: =ColTime(T!$B$8,T!$C$8,B33,C33) -> 0
A34: 2019-08-08 | E34: 00:00:00 | F34: =IF(B34<>"",IF(E34>T!$B$4,T!$C$4,E34-T!$B$3),"0:0") -> 0:0 | G34: =IF(E34>T!$B$4,E34-T!$B$4,"00:00") -> 00:00 | H34: =ColTime(T!$B$7,T!$C$7,B34,C34) -> 0 | I34: =ColTime(T!$B$8,T!$C$8,B34,C34) -> 0
A35: 2019-08-09 | E35: 00:00:00 | F35: =IF(B35<>"",IF(E35>T!$B$4,T!$C$4,E35-T!$B$3),"0:0") -> 0:0 | G35: =IF(E35>T!$B$4,E35-T!$B$4,"00:00") -> 00:00 | H35: =ColTime(T!$B$7,T!$C$7,B35,C35) -> 0 | I35: =ColTime(T!$B$8,T!$C$8,B35,C35) -> 0
A36: 2019-08-10 | E36: 00:00:00 | F36: =IF(B36<>"",IF(E36>T!$B$4,T!$C$4,E36-T!$B$3),"0:0") -> 0:0 | G36: =IF(E36>T!$B$4,E36-T!$B$4,"00:00") -> 00:00 | H36: =ColTime(T!$B$7,T!$C$7,B36,C36) -> 0 | I36: =ColTime(T!$B$8,T!$C$8,B36,C36) -> 0
A37: 2019-08-11 | E37: 00:00:00 | F37: =IF(B37<>"",IF(E37>T!$B$4,T!$C$4,E37-T!$B$3),"0:0") -> 0:0 | G37: =IF(E37>T!$B$4,E37-T!$B$4,"00:00") -> 00:00 | H37: =ColTime(T!$B$7,T!$C$7,B37,C37) -> 0 | I37: =ColTime(T!$B$8,T!$C$8,B37,C37) -> 0
A38: 2019-08-12 | E38: 00:00:00 | F38: =IF(B38<>"",IF(E38>T!$B$4,T!$C$4,E38-T!$B$3),"0:0") -> 0:0 | G38: =IF(E38>T!$B$4,E38-T!$B$4,"00:00") -> 00:00 | H38: =ColTime(T!$B$7,T!$C$7,B38,C38) -> 0 | I38: =ColTime(T!$B$8,T!$C$8,B38,C38) -> 0
A39: 2019-08-13 | E39: 00:00:00 | F39: =IF(B39<>"",IF(E39>T!$B$4,T!$C$4,E39-T!$B$3),"0:0") -> 0:0 | G39: =IF(E39>T!$B$4,E39-T!$B$4,"00:00") -> 00:00 | H39: =ColTime(T!$B$7,T!$C$7,B39,C39) -> 0 | I39: =ColTime(T!$B$8,T!$C$8,B39,C39) -> 0
A40: 2019-08-14 | E40: 00:00:00 | F40: =IF(B40<>"",IF(E40>T!$B$4,T!$C$4,E40-T!$B$3),"0:0") -> 0:0 | G40: =IF(E40>T!$B$4,E40-T!$B$4,"00:00") -> 00:00 | H40: =ColTime(T!$B$7,T!$C$7,B40,C40) -> 0 | I40: =ColTime(T!$B$8,T!$C$8,B40,C40) -> 0
A41: 2019-08-15 | E41: 00:00:00 | F41: =IF(B41<>"",IF(E41>T!$B$4,T!$C$4,E41-T!$B$3),"0:0") -> 0:0 | G41: =IF(E41>T!$B$4,E41-T!$B$4,"00:00") -> 00:00 | H41: =ColTime(T!$B$7,T!$C$7,B41,C41) -> 0 | I41: =ColTime(T!$B$8,T!$C$8,B41,C41) -> 0
A42: 2019-08-16 | E42: 00:00:00 | F42: =IF(B42<>"",IF(E42>T!$B$4,T!$C$4,E42-T!$B$3),"0:0") -> 0:0 | G42: =IF(E42>T!$B$4,E42-T!$B$4,"00:00") -> 00:00 | H42: =ColTime(T!$B$7,T!$C$7,B42,C42) -> 0 | I42: =ColTime(T!$B$8,T!$C$8,B42,C42) -> 0
A43: 2019-08-17 | E43: 00:00:00 | F43: =IF(B43<>"",IF(E43>T!$B$4,T!$C$4,E43-T!$B$3),"0:0") -> 0:0 | G43: =IF(E43>T!$B$4,E43-T!$B$4,"00:00") -> 00:00 | H43: =ColTime(T!$B$7,T!$C$7,B43,C43) -> 0 | I43: =ColTime(T!$B$8,T!$C$8,B43,C43) -> 0
A44: 2019-08-18 | E44: 00:00:00 | F44: =IF(B44<>"",IF(E44>T!$B$4,T!$C$4,E44-T!$B$3),"0:0") -> 0:0 | G44: =IF(E44>T!$B$4,E44-T!$B$4,"00:00") -> 00:00 | H44: =ColTime(T!$B$7,T!$C$7,B44,C44) -> 0 | I44: =ColTime(T!$B$8,T!$C$8,B44,C44) -> 0
A45: 2019-08-19 | E45: 00:00:00 | F45: =IF(B45<>"",IF(E45>T!$B$4,T!$C$4,E45-T!$B$3),"0:0") -> 0:0 | G45: =IF(E45>T!$B$4,E45-T!$B$4,"00:00") -> 00:00 | H45: =ColTime(T!$B$7,T!$C$7,B45,C45) -> 0 | I45: =ColTime(T!$B$8,T!$C$8,B45,C45) -> 0
A46: 2019-08-20 | E46: 00:00:00 | F46: =IF(B46<>"",IF(E46>T!$B$4,T!$C$4,E46-T!$B$3),"0:0") -> 0:0 | G46: =IF(E46>T!$B$4,E46-T!$B$4,"00:00") -> 00:00 | H46: =ColTime(T!$B$7,T!$C$7,B46,C46) -> 0 | I46: =ColTime(T!$B$8,T!$C$8,B46,C46) -> 0

Sheet T
A3: Arbejdsdag beregnede til | B3: 07:30:00
A4: Overarbejde 1-3 | B4: 10:30:00 | C4: 03:00:00
A7: Aftentillæg | B7: 18:00:00 | C7: 23:00:00
A8: Nattillæg | B8: 23:00:00 | C8: 06:00:00
